[Event "Czech Youth U10 Boys 2024"]
[Site "Kouty nad Desnou"]
[Date "2024.03.16"]
[Round "9.5"]
[White "Strihavka, Petr"]
[Black "Hlavacek, Pavel"]
[Result "0-1"]
[ECO "B19"]
[WhiteElo "1447"]
[BlackElo "1945"]
[Annotator "RC"]
[PlyCount "56"]
[EventDate "2024.03.10"]
[EventType "swiss"]
[EventCountry "CZE"]
[SourceTitle "playchess.com"]
[Source "ChessBase"]
[SourceQuality "1"]
[TimeControl "40/5400+30:1800+30"]

1. e4 {[%emt 0:00:03]} c6 {[%emt 0:00:11]} 2. d4 {[%emt 0:00:15]} d5 {[%emt 0:00:14]} 3. Nc3 {[%emt 0:00:13]} dxe4 {[%emt 0:00:22]} 4. Nxe4 {[%emt 0:00:19]} Bf5 {[%emt 0:00:23]} 5. Ng3 {[%emt 0:00:11]} Bg6 {[%emt 0:00:17]} 6. h4 {[%emt 0:00:15]} h6 {[%emt 0:00:14]} 7. Nf3 {[%emt 0:00:17]} Nd7 {[%emt 0:00:20]} 8. h5 {[%emt 0:01:26]} Bh7 {[%emt 0:00:19]} 9. Be3 {[%emt 0:01:20]} Ngf6 {[%emt 0:01:02]} 10. Qd2 {[%emt 0:00:30]} e6 {[%emt 0:01:08]} 11. Bd3 {[%emt 0:00:23]} Bxd3 {[%emt 0:00:23]} 12. Qxd3 {[%emt 0:00:16]} Be7 {[%emt 0:00:41]} 13. O-O-O {[%emt 0:00:25]} O-O {[%emt 0:01:24]} 14. Kb1 {[%emt 0:00:32]} Rc8 {[%emt 0:02:04]} 15. Rh3 {[%emt 0:01:14]} c5 {[%emt 0:02:07]} 16. Ne4 Qb6 {[%emt 0:08:39]} 17. Ne5 {[%emt 0:10:46]} Rfd8 {[%emt 0:07:19]} 18. Nxd7 {[%emt 0:06:04]} Rxd7 {[%emt 0:01:47]} 19. Nxf6+ {[%emt 0:00:33]} Bxf6 {[%emt 0:00:14]} 20. c3 {[%emt 0:00:49]} cxd4 {[%emt 0:05:00]} 21. cxd4 {[%emt 0:00:29]} Rcd8 {[%emt 0:00:52]} 22. Qc3 {[%emt 0:05:10]} Bxd4 {[%emt 0:01:36]} 23. Bxd4 {[%emt 0:00:50]} Rxd4 {[%emt 0:00:11]} 24. Rxd4 {[%emt 0:00:22]} Rxd4 {[%emt 0:00:11]} 25. Rg3 {[%emt 0:00:29]} e5 {[%emt 0:02:37]} 26. Re3 {[%emt 0:01:21]} Qe6 {[%emt 0:04:12]} 27. g3 {[%emt 0:01:31]} Qf5+ {[%emt 0:00:49]} 28. Qc2 {[%emt 0:00:43]} Rd1# {[%emt 0:00:08]} 0-1

[Event "Czech Youth U10 Boys 2024"]
[Site "Kouty nad Desnou"]
[Date "2024.03.16"]
[Round "9.6"]
[White "Lutskiy, Mikhail"]
[Black "Menkov, Ivan"]
[Result "1-0"]
[ECO "C50"]
[WhiteElo "1676"]
[BlackElo "1524"]
[Annotator "NA RC"]
[PlyCount "59"]
[EventDate "2024.03.10"]
[EventType "swiss"]
[EventCountry "CZE"]
[SourceTitle "playchess.com"]
[Source "ChessBase"]
[SourceQuality "1"]
[TimeControl "40/5400+30:1800+30"]

1. e4 {[%emt 0:00:03]} e5 {[%emt 0:00:07]} 2. Nf3 {[%emt 0:00:07]} Nc6 {[%emt 0:00:07]} 3. Bc4 {[%emt 0:00:14]} Nf6 {[%emt 0:00:08]} 4. d3 {[%emt 0:00:13]} Bc5 {[%emt 0:00:06]} 5. c3 {[%emt 0:00:24]} d6 {[%emt 0:00:06]} 6. O-O {[%emt 0:00:14]} a6 {[%emt 0:00:10]} 7. Re1 {[%emt 0:00:44]} Ba7 {[%emt 0:00:47]} 8. h3 {[%emt 0:00:32]} O-O {[%emt 0:00:08]} 9. Bb3 {[%emt 0:00:32]} Be6 {[%emt 0:00:40]} 10. Nbd2 Qd7 {[%emt 0:00:57]} 11. Nf1 {[%emt 0:01:53]} Bxh3 {[%emt 0:02:04]} 12. gxh3 {[%emt 0:00:47]} Qxh3 {[%emt 0:00:07]} 13. Be3 {[%emt 0:00:46]} Qg4+ {[%emt 0:01:13]} 14. Kh1 {[%emt 0:01:09]} Ne7 {[%emt 0:00:51]} 15. N1h2 {[%emt 0:02:59]} Qh5 {[%emt 0:00:33]} 16. Rg1 {[%emt 0:04:19]} d5 {[%emt 0:01:04]} 17. exd5 {[%emt 0:03:43]} Nexd5 {[%emt 0:00:09]} 18. Bxd5 {[%emt 0:00:49]} Nxd5 {[%emt 0:00:09]} 19. Bxa7 {[%emt 0:00:26]} Rxa7 {[%emt 0:00:06]} 20. Ng5 {[%emt 0:00:47]} Qh4 {[%emt 0:00:13]} 21. Qg4 {[%emt 0:03:53]} Qxf2 {[%emt 0:00:17]} 22. Ne4 {[%emt 0:02:05]} Qxg1+ {[%emt 0:01:32]} 23. Rxg1 {[%emt 0:00:16]} g6 {[%emt 0:00:15]} 24. c4 {[%emt 0:00:50]} Nb4 {[%emt 0:00:09]} 25. Nf6+ {[%emt 0:00:25]} Kg7 {[%emt 0:00:58]} 26. Qh4 {[%emt 0:00:29]} Nxd3 {[%emt 0:00:17]} 27. Nh5+ {[%emt 0:00:38]} Kg8 {[%emt 0:00:41]} 28. Qf6 {[%emt 0:00:41]} Nf2+ {[%emt 0:00:46]} 29. Kg2 {[%emt 0:00:35]} Ng4 {[%emt 0:00:19]} 30. Qg7# {[%emt 0:00:09]} 1-0

[Event "Czech Youth U10 Boys 2024"]
[Site "Kouty nad Desnou"]
[Date "2024.03.16"]
[Round "9.10"]
[White "Vratny, Vojtech"]
[Black "Kobersky, Matyas"]
[Result "1-0"]
[ECO "A06"]
[WhiteElo "1566"]
[BlackElo "1405"]
[Annotator "NA RC"]
[PlyCount "133"]
[EventDate "2024.03.10"]
[EventType "swiss"]
[EventCountry "CZE"]
[SourceTitle "playchess.com"]
[Source "ChessBase"]
[SourceQuality "1"]
[TimeControl "40/5400+30:1800+30"]

1. Nf3 {[%emt 0:00:04]} d5 2. g3 {[%emt 0:00:39]} Nc6 {[%emt 0:11:13]} 3. d4 {[%emt 0:00:27]} Nf6 {[%emt 0:06:06]} 4. Bg2 {[%emt 0:01:40]} Bf5 {[%emt 0:08:33]} 5. O-O {[%emt 0:00:47]} e6 {[%emt 0:06:13]} 6. Bg5 {[%emt 0:03:06]} Be7 {[%emt 0:03:57]} 7. Re1 {[%emt 0:02:26]} O-O {[%emt 0:08:54]} 8. Nh4 {[%emt 0:01:04]} Bg4 {[%emt 0:09:44]} 9. Nf3 {[%emt 0:02:33]} Bf5 {[%emt 0:05:12]} 10. Qc1 {[%emt 0:00:53]} Qd7 {[%emt 0:11:09]} 11. c4 {[%emt 0:01:07]} dxc4 {[%emt 0:05:11]} 12. Qxc4 {[%emt 0:00:19]} Qd5 {[%emt 0:05:10]} 13. Qxd5 {[%emt 0:00:34]} exd5 {[%emt 0:01:42]} 14. Nc3 {[%emt 0:01:02]} h6 {[%emt 0:02:57]} 15. Bxf6 {[%emt 0:00:30]} Bxf6 {[%emt 0:00:23]} 16. Nxd5 {[%emt 0:00:40]} Bxd4 {[%emt 0:01:30]} 17. Nxc7 {[%emt 0:00:42]} Bxb2 {[%emt 0:00:54]} 18. Nxa8 Bxa1 {[%emt 0:00:39]} 19. Rxa1 {[%emt 0:01:13]} Rxa8 {[%emt 0:00:14]} 20. Rd1 {[%emt 0:02:09]} Be6 {[%emt 0:01:27]} 21. a3 {[%emt 0:00:30]} Rc8 {[%emt 0:01:29]} 22. Rd3 {[%emt 0:03:37]} Bc4 {[%emt 0:02:07]} 23. Re3 {[%emt 0:00:30]} Rd8 {[%emt 0:01:15]} 24. Ne5 {[%emt 0:00:47]} Nxe5 {[%emt 0:01:42]} 25. Rxe5 {[%emt 0:00:14]} Rd7 {[%emt 0:01:10]} 26. Bf3 {[%emt 0:00:46]} Be6 {[%emt 0:01:36]} 27. Kg2 {[%emt 0:01:04]} g5 {[%emt 0:01:09]} 28. e3 {[%emt 0:00:38]} Kg7 {[%emt 0:00:54]} 29. Rb5 {[%emt 0:01:37]} b6 {[%emt 0:00:59]} 30. a4 {[%emt 0:00:37]} Rd3 {[%emt 0:00:43]} 31. a5 {[%emt 0:00:26]} bxa5 {[%emt 0:00:56]} 32. Rxa5 {[%emt 0:00:37]} Rd7 {[%emt 0:00:19]} 33. h3 {[%emt 0:01:06]} Kg6 {[%emt 0:00:32]} 34. Be4+ {[%emt 0:00:16]} f5 {[%emt 0:00:30]} 35. Bc6 {[%emt 0:00:25]} Rc7 {[%emt 0:00:24]} 36. Bd5 {[%emt 0:00:20]} Bxd5+ {[%emt 0:00:27]} 37. Rxd5 Rc6 {[%emt 0:00:20]} 38. Ra5 {[%emt 0:00:30]} Rc7 {[%emt 0:00:31]} 39. Ra6+ {[%emt 0:00:13]} Kg7 {[%emt 0:00:19]} 40. Kf3 {[%emt 0:00:17]} h5 {[%emt 0:00:23]} 41. Ra5 {[%emt 0:30:15]} Kf6 {[%emt 0:30:25]} 42. e4 {[%emt 0:00:39]} fxe4+ {[%emt 0:01:36]} 43. Kxe4 {[%emt 0:00:10]} Re7+ {[%emt 0:00:17]} 44. Kf3 {[%emt 0:00:10]} Rf7 {[%emt 0:00:39]} 45. Kg2 {[%emt 0:00:20]} Kg6 {[%emt 0:00:21]} 46. g4 {[%emt 0:00:46]} h4 {[%emt 0:00:38]} 47. Ra6+ {[%emt 0:00:12]} Kg7 {[%emt 0:00:23]} 48. Ra2 {[%emt 0:00:36]} Kg6 {[%emt 0:00:30]} 49. f3 {[%emt 0:00:14]} Re7 {[%emt 0:00:37]} 50. Kf2 {[%emt 0:00:17]} Kf7 {[%emt 0:00:21]} 51. Ra5 {[%emt 0:00:26]} Kf6 {[%emt 0:00:17]} 52. Rf5+ {[%emt 0:00:25]} Kg6 {[%emt 0:00:37]} 53. f4 {[%emt 0:00:46]} gxf4 {[%emt 0:00:35]} 54. Rxf4 {[%emt 0:00:16]} Rf7 {[%emt 0:00:05]} 55. Rxf7 {[%emt 0:00:52]} Kxf7 {[%emt 0:00:09]} 56. Ke3 {[%emt 0:00:07]} Kf6 {[%emt 0:00:36]} 57. Kd4 {[%emt 0:00:11]} Kg5 {[%emt 0:00:43]} 58. Kc5 {[%emt 0:00:12]} Kf4 {[%emt 0:00:28]} 59. Kb5 {[%emt 0:00:18]} Kg3 {[%emt 0:00:51]} 60. g5 {[%emt 0:00:10]} Kxh3 {[%emt 0:00:35]} 61. g6 {[%emt 0:00:57]} Kg2 {[%emt 0:00:22]} 62. g7 {[%emt 0:00:44]} h3 {[%emt 0:00:06]} 63. g8=Q+ {[%emt 0:00:21]} Kh2 {[%emt 0:00:03]} 64. Qa2+ {[%emt 0:00:48]} Kh1 {[%emt 0:00:17]} 65. Qf2 {[%emt 0:00:15]} a6+ {[%emt 0:00:24]} 66. Ka5 {[%emt 0:00:11]} h2 {[%emt 0:00:22]} 67. Qf1# 1-0

[Event "Czech Youth U10 Boys 2024"]
[Site "Kouty nad Desnou"]
[Date "2024.03.16"]
[Round "9.11"]
[White "Fadrny, Jonas"]
[Black "Hroch, Pavel"]
[Result "1-0"]
[ECO "C30"]
[WhiteElo "1600"]
[BlackElo "1495"]
[Annotator "NA"]
[PlyCount "51"]
[EventDate "2024.03.10"]
[EventType "swiss"]
[EventCountry "CZE"]
[SourceTitle "playchess.com"]
[Source "ChessBase"]
[SourceQuality "1"]
[TimeControl "40/5400+30:1800+30"]

1. e4 {[%emt 0:00:04]} e5 {[%emt 0:03:13]} 2. f4 {[%emt 0:00:18]} d6 {[%emt 0:07:05]} 3. Nf3 {[%emt 0:00:51]} Nc6 {[%emt 0:02:32]} 4. Bc4 {[%emt 0:01:47]} Nf6 {[%emt 0:15:50]} 5. Nc3 {[%emt 0:03:06]} Nxe4 {[%emt 0:13:29]} 6. Bxf7+ {[%emt 0:02:06]} Kxf7 {[%emt 0:01:29]} 7. Nxe4 {[%emt 0:00:45]} Be7 {[%emt 0:01:42]} 8. fxe5 {[%emt 0:01:35]} dxe5 {[%emt 0:00:20]} 9. O-O {[%emt 0:02:45]} Rf8 {[%emt 0:00:26]} 10. Nxe5+ {[%emt 0:05:31]} Kg8 {[%emt 0:01:53]} 11. Rxf8+ {[%emt 0:00:34]} Bxf8 {[%emt 0:00:32]} 12. Nxc6 {[%emt 0:00:44]} bxc6 {[%emt 0:01:15]} 13. d3 {[%emt 0:01:22]} Bf5 {[%emt 0:02:40]} 14. Ng3 {[%emt 0:01:10]} Qd4+ {[%emt 0:09:57]} 15. Kh1 {[%emt 0:00:53]} Bg4 {[%emt 0:16:45]} 16. Qe1 {[%emt 0:03:34]} Bc5 {[%emt 0:03:20]} 17. Bd2 {[%emt 0:04:25]} Rf8 {[%emt 0:02:24]} 18. Bc3 {[%emt 0:06:39]} Qf2 {[%emt 0:03:57]} 19. Qxf2 {[%emt 0:03:14]} Rxf2 {[%emt 0:02:55]} 20. Ne4 {[%emt 0:01:53]} Rf5 {[%emt 0:02:30]} 21. Nxc5 {[%emt 0:01:11]} Rxc5 {[%emt 0:00:49]} 22. d4 {[%emt 0:03:59]} Rg5 {[%emt 0:01:30]} 23. Rf1 {[%emt 0:05:23]} Bf5 {[%emt 0:01:44]} 24. Bb4 {[%emt 0:02:54]} h6 {[%emt 0:00:30]} 25. c3 {[%emt 0:02:02]} Be4 {[%emt 0:02:10]} 26. Rf2 {[%emt 0:01:16]} 1-0